bitfinex/quotes_BTCUSD_20250711
["timestamp","ask_amount","ask_price","bid_price","bid_amount"]
[1752239375416,0.003,117790.0,117780.0,0.58632548]
[1752239376712,0.003,117790.0,117780.0,0.07265688]
[1752239376924,0.003,117790.0,117780.0,0.04718288]
[1752239378023,0.003,117790.0,117780.0,0.56085148]
[1752239378596,0.003,117790.0,117780.0,0.73065959]
[1752239378812,0.003,117790.0,117780.0,0.84156007]
[1752239379252,0.003,117790.0,117780.0,0.86459082]
[1752239379474,0.002,117810.0,117800.0,0.0315]
[1752239379688,0.002,117810.0,117800.0,0.82969148]
[1752239381039,0.003,117810.0,117800.0,0.82969148]
[1752239381694,0.003,117810.0,117800.0,0.31602288]
[1752239382381,0.003,117810.0,117800.0,0.99947076]
[1752239382595,0.003,117810.0,117800.0,0.31602288]
[1752239383038,0.003,117810.0,117800.0,0.40145281]
[1752239383282,0.00023561,117810.0,117800.0,1.13339636]
[1752239383756,1.851e-05,117810.0,117800.0,1.11641924]
[1752239384000,0.1,117830.0,117820.0,0.0316]
[1752239384223,0.1,117830.0,117820.0,0.04748288]
[1752239384444,0.1,117830.0,117820.0,0.83183336]
[1752239384672,0.1,117830.0,117820.0,0.82971148]
[1752239384891,0.1,117830.0,117820.0,0.31604288]
[1752239385322,0.1,117830.0,117820.0,0.31612749]
[1752239385540,0.103,117830.0,117820.0,0.31612749]
[1752239385766,0.1,117830.0,117820.0,0.31612749]
[1752239386263,0.10848622,117830.0,117820.0,0.31712749]
[1752239386481,0.102,117830.0,117820.0,0.31712749]
[1752239386699,0.11048622,117830.0,117820.0,0.31704311]
[1752239386924,0.1,117830.0,117820.0,0.31704311]
[1752239388247,0.1,117830.0,117820.0,0.31604311]
[1752239389117,0.11697251,117830.0,117820.0,0.31604311]
[1752239389341,0.28670865,117830.0,117820.0,0.31604311]
[1752239389594,0.80886412,117830.0,117820.0,0.01588311]
[1752239389863,1.20051775,117830.0,117820.0,0.01588311]
[1752239390091,1.21681775,117830.0,117820.0,0.01588311]
[1752239390973,1.21781775,117830.0,117820.0,0.01588311]
[1752239391200,1.30324768,117830.0,117820.0,0.01588311]
[1752239391856,1.30524768,117830.0,117820.0,0.01588311]
[1752239392301,1.30524768,117830.0,117820.0,0.01586622]
[1752239393192,0.65733908,117830.0,117820.0,0.01586622]
[1752239393426,1.30524768,117830.0,117820.0,0.01586622]
[1752239395064,1.31751247,117830.0,117820.0,0.01586622]
[1752239395283,1.64524768,117830.0,117820.0,0.01586622]
[1752239395498,1.64524768,117830.0,117820.0,0.00737956]
[1752239395725,1.65978853,117830.0,117820.0,0.00737956]
[1752239395962,1.65978853,117830.0,117780.0,0.043073]
[1752239395963,0.71741972,117790.0,117780.0,0.043073]
[1752239396210,0.81749708,117790.0,117780.0,0.0176]
[1752239396426,0.83447579,117790.0,117780.0,0.0176]
[1752239396857,0.32929687,117790.0,117780.0,0.0176]
[1752239397305,0.32944679,117790.0,117780.0,0.0176]
[1752239397531,0.32095754,117790.0,117780.0,0.0186]
[1752239397973,0.83462614,117790.0,117780.0,0.0186]
[1752239398614,0.32095754,117790.0,117780.0,0.0344]
[1752239398850,0.32095711,117790.0,117780.0,0.0374]
[1752239399061,0.1513682,117790.0,117780.0,0.0374]
[1752239399266,0.33814076,117790.0,117780.0,0.0374]
[1752239399477,0.00863895,117790.0,117780.0,0.0374]
[1752239399694,0.15136813,117790.0,117780.0,0.0374]
[1752239400138,0.15985745,117790.0,117780.0,0.0374]
[1752239400344,0.34663015,117790.0,117780.0,0.0374]
[1752239400568,0.14287895,117790.0,117780.0,0.0374]
[1752239400991,0.15136813,117790.0,117780.0,0.0374]
[1752239401216,0.14287895,117790.0,117780.0,0.0374]
[1752239401495,0.00014992,117790.0,117780.0,0.0374]
[1752239401731,0.00014992,117790.0,117780.0,1.06299931]
[1752239401953,0.00014992,117790.0,117780.0,1.46324794]
[1752239402186,0.00014992,117790.0,117780.0,1.44626807]
[1752239402626,0.00014992,117790.0,117780.0,0.92410929]
[1752239402864,0.00014992,117790.0,117780.0,1.26796978]
[1752239403085,0.00014992,117790.0,117780.0,1.25947938]
[1752239404162,0.00014992,117790.0,117780.0,1.26796971]
[1752239404598,9.54e-06,117790.0,117780.0,1.27645997]
[1752239404813,9.54e-06,117790.0,117780.0,1.26796978]
[1752239405063,9.54e-06,117790.0,117780.0,1.44626822]
[1752239405324,9.54e-06,117790.0,117780.0,1.45475848]
[1752239405546,9.54e-06,117790.0,117780.0,0.74581078]
[1752239405765,9.54e-06,117790.0,117780.0,1.25947938]
[1752239405982,0.01697691,117800.0,117790.0,0.0315]
[1752239406194,0.69701775,117810.0,117790.0,0.11692993]
[1752239406427,0.69701739,117810.0,117790.0,0.11692993]
[1752239406660,0.00848838,117800.0,117790.0,0.0315]
[1752239406879,0.7139938,117810.0,117790.0,0.0315]
[1752239407097,0.70550556,117810.0,117790.0,0.0315]
[1752239407556,0.00848831,117800.0,117790.0,0.0325]
[1752239407758,0.00848831,117800.0,117790.0,0.0483598]
[1752239408003,0.01697684,117800.0,117790.0,0.0483598]
[1752239408225,0.01697676,117800.0,117790.0,0.0325]
[1752239408444,0.00848831,117800.0,117790.0,0.0483598]
[1752239408662,0.01697676,117800.0,117790.0,0.0473598]
[1752239409091,0.00848831,117800.0,117790.0,0.0483598]
[1752239409334,0.01697684,117800.0,117790.0,0.0483598]
[1752239409547,0.00848831,117800.0,117790.0,0.0483598]
[1752239409762,0.01697684,117800.0,117790.0,0.0483598]
[1752239409970,0.02546558,117800.0,117790.0,0.0483598]
[1752239410181,0.01697684,117800.0,117790.0,0.0483598]
[1752239410637,0.01697676,117800.0,117790.0,0.0483598]
[1752239410857,0.02546536,117800.0,117790.0,0.0483598]
[1752239411285,0.01697676,117800.0,117790.0,0.0483598]
[1752239411519,0.15966536,117800.0,117790.0,0.0483598]
[1752239411745,0.84311375,117800.0,117790.0,0.0168598]
[1752239411979,0.8346253,117800.0,117790.0,0.0168598]
[1752239412949,1.0761367,117800.0,117790.0,0.0168598]
[1752239413195,1.0761367,117800.0,117790.0,0.0158598]
[1752239413427,1.6212053,117800.0,117790.0,0.0158598]
[1752239413879,1.62983599,117800.0,117790.0,0.0158598]
[1752239414101,1.71626592,117800.0,117790.0,0.0158598]
[1752239415467,1.74492301,117800.0,117790.0,0.0158598]
[1752239415687,2.05726592,117800.0,117790.0,0.0158598]
[1752239415948,2.06026592,117800.0,117790.0,0.0158598]
[1752239416382,2.05726592,117800.0,117790.0,0.0158598]
[1752239416832,2.47480677,117800.0,117790.0,0.00737278]
[1752239417059,2.47280677,117800.0,117790.0,0.00737278]
[1752239417270,0.72425184,117790.0,117780.0,0.002]
[1752239417487,0.80968177,117790.0,117780.0,0.002]
[1752239419016,0.81368177,117790.0,117780.0,0.002]
[1752239422493,1.04758177,117790.0,117780.0,0.002]
[1752239422701,1.17407123,117790.0,117780.0,0.002]
[1752239423580,0.52620263,117790.0,117780.0,0.002]
[1752239423804,0.40517828,117790.0,117780.0,0.0331]
[1752239424031,0.57946181,117790.0,117780.0,0.0331]
[1752239424238,1.09313041,117790.0,117780.0,0.0331]
[1752239424888,0.56248324,117790.0,117780.0,0.0331]
[1752239426922,0.57946224,117790.0,117780.0,0.0331]
[1752239427308,0.57097256,117790.0,117780.0,0.0331]
[1752239427539,0.43677212,117790.0,117780.0,0.0331]
[1752239427857,0.44526166,117790.0,117780.0,0.0331]
[1752239428070,0.58795134,117790.0,117780.0,0.0331]
[1752239428311,0.57946166,117790.0,117780.0,0.0331]
[1752239428573,0.58795134,117790.0,117780.0,0.0331]
[1752239428973,0.57946224,117790.0,117780.0,0.0331]
[1752239429192,1.07264031,117790.0,117780.0,0.03324575]
[1752239429389,1.07264031,117790.0,117780.0,0.01784575]
[1752239429600,0.57097292,117790.0,117780.0,0.01784575]
[1752239430057,1.07264031,117790.0,117780.0,0.01784575]
[1752239431324,0.57097292,117790.0,117780.0,0.01784575]
[1752239432158,0.57109292,117790.0,117780.0,0.01784575]
[1752239432595,0.56260338,117790.0,117780.0,0.01784575]
[1752239433440,0.56260338,117790.0,117780.0,0.002]
[1752239433672,0.56260338,117790.0,117780.0,0.01785106]
[1752239433881,0.31260338,117790.0,117780.0,0.01785106]
[1752239434996,0.32097284,117790.0,117780.0,0.04945106]
[1752239436099,0.31248338,117790.0,117780.0,0.04945106]
[1752239438363,0.17828338,117790.0,117780.0,0.04945106]
[1752239438573,0.31248338,117790.0,117780.0,0.04945106]
[1752239439003,0.31248338,117790.0,117780.0,0.04946701]
[1752239439285,0.30229683,117790.0,117780.0,0.04946701]
[1752239439682,0.30229683,117790.0,117780.0,0.03316701]
[1752239441454,0.30229683,117790.0,117780.0,0.01786701]
[1752239441863,0.30229683,117790.0,117780.0,0.01735292]
[1752239442068,0.30229683,117790.0,117780.0,0.03335292]
[1752239442856,0.15960715,117790.0,117780.0,0.03335292]
[1752239443087,0.0084891,117790.0,117780.0,0.04975292]
[1752239443314,0.32097183,117790.0,117780.0,0.04985292]
[1752239443529,0.32946115,117790.0,117780.0,0.04985292]
[1752239443766,0.32776442,117790.0,117780.0,0.04985292]
[1752239444020,0.34474306,117790.0,117780.0,0.04985292]
[1752239444229,0.33795119,117790.0,117780.0,0.04985292]
[1752239444444,0.32946209,117790.0,117780.0,0.04985292]
[1752239444656,0.32946209,117790.0,117780.0,0.05187749]
[1752239444859,0.84314403,117790.0,117780.0,0.05287749]
[1752239449354,0.83295798,117790.0,117780.0,0.05287749]
[1752239450005,0.83285794,117790.0,117780.0,0.05287749]
[1752239450219,0.84134762,117790.0,117780.0,0.05287908]
[1752239450435,0.31917593,117790.0,117780.0,0.05287908]
[1752239450887,0.32766561,117790.0,117780.0,0.05287908]
[1752239451064,0.31917593,117790.0,117780.0,0.05287908]
[1752239451319,0.319176,117790.0,117780.0,0.05287908]
[1752239451575,0.31068639,117790.0,117780.0,0.05287908]
[1752239451787,0.0084891,117790.0,117780.0,0.05287908]
[1752239451998,0.14268903,117790.0,117780.0,0.53406102]
[1752239452431,0.43675718,117800.0,117780.0,0.53406102]
[1752239452642,0.40966572,117800.0,117790.0,0.0319]
[1752239452870,0.579445,117800.0,117790.0,0.04779317]
[1752239453083,0.58793382,117800.0,117790.0,0.04779317]
[1752239453507,0.58793426,117800.0,117790.0,0.04779317]
[1752239453722,0.58793418,117800.0,117790.0,0.04779317]
[1752239453946,0.33793418,117800.0,117790.0,0.04779317]
[1752239455093,0.32944529,117800.0,117790.0,0.04779317]
[1752239455301,0.32944558,117800.0,117790.0,0.04779317]
[1752239455743,0.32940558,117800.0,117790.0,0.04779317]
[1752239457792,0.82611011,117800.0,117790.0,0.01589317]
[1752239457994,0.17828324,117790.0,117780.0,0.00148591]
[1752239458216,0.80959511,117790.0,117780.0,0.01738432]
[1752239458425,1.54959511,117790.0,117780.0,0.01738432]
[1752239458635,0.46900427,117770.0,117760.0,0.002]
[1752239458846,1.71611808,117770.0,117760.0,0.002]
[1752239459048,1.74161612,117770.0,117760.0,0.002]
[1752239459279,1.21638933,117770.0,117760.0,0.002]
[1752239459867,0.71425224,117770.0,117760.0,0.002]
[1752239460088,1.08206933,117770.0,117760.0,0.002]
[1752239460298,1.18446933,117770.0,117760.0,0.002]
[1752239460986,1.18646933,117770.0,117760.0,0.002]
[1752239461202,1.21866933,117770.0,117760.0,0.002]
[1752239462788,1.05186933,117770.0,117760.0,0.002]
[1752239462992,1.18694933,117770.0,117760.0,0.002]
[1752239463236,0.54973224,117770.0,117760.0,0.002]
[1752239463471,0.68477224,117770.0,117760.0,0.002]
[1752239463698,1.18690933,117770.0,117760.0,0.002]
[1752239464784,0.436836,117750.0,117740.0,0.02817344]
[1752239464990,1.14929374,117750.0,117740.0,0.02817344]
[1752239465217,1.15778616,117750.0,117740.0,0.02817344]
[1752239465664,1.19028616,117750.0,117740.0,0.02817344]
[1752239465888,1.19028616,117750.0,117740.0,0.01968242]
[1752239466109,1.19037111,117750.0,117740.0,0.01968242]
[1752239466326,1.19893951,117750.0,117740.0,0.01968242]
[1752239467266,0.52065402,117750.0,117740.0,0.01968242]
[1752239467470,0.65601402,117750.0,117740.0,0.01968242]
[1752239467678,0.51385868,117750.0,117740.0,0.03488242]
[1752239467882,0.64925868,117750.0,117740.0,0.03488242]
[1752239468969,0.64925868,117750.0,117740.0,0.04988242]
[1752239469189,8.495e-05,117750.0,117740.0,0.04988242]
[1752239469395,8.495e-05,117750.0,117740.0,0.05200574]
[1752239469608,8.495e-05,117750.0,117740.0,0.04988242]
[1752239470232,0.01706929,117750.0,117740.0,0.04988242]
[1752239470652,0.01706929,117750.0,117740.0,0.06571952]
[1752239470897,0.18692067,117750.0,117740.0,0.06571952]
[1752239471093,0.20390558,117750.0,117740.0,0.06571952]
[1752239471298,0.33934558,117750.0,117740.0,0.06571952]
[1752239471509,0.33085352,117750.0,117740.0,0.06571952]
[1752239471922,0.33085338,117750.0,117740.0,0.06571952]
[1752239472346,0.33934594,117750.0,117740.0,0.06571952]
[1752239472762,8.495e-05,117750.0,117740.0,0.06571952]
[1752239472970,0.01706929,117750.0,117740.0,0.06571952]
[1752239473183,0.19541287,117750.0,117740.0,0.06571952]
[1752239473417,0.18692052,117750.0,117740.0,0.06571952]
[1752239473635,0.1949128,117750.0,117740.0,0.06571952]
[1752239473876,0.20340515,117750.0,117740.0,0.06571952]
[1752239474560,0.21189764,117750.0,117740.0,0.06571952]
[1752239474797,0.20340515,117750.0,117740.0,0.06571952]
[1752239475007,0.18472375,117750.0,117740.0,0.06571952]
[1752239475215,0.02336443,117750.0,117740.0,0.06571952]
[1752239475437,0.19321581,117750.0,117740.0,0.06571952]
[1752239475642,0.20170816,117750.0,117740.0,0.06571952]
[1752239475951,0.21020065,117750.0,117740.0,0.06571952]
[1752239476399,0.20170816,117750.0,117740.0,0.06571952]
[1752239476609,0.02336443,117750.0,117740.0,0.06571952]
[1752239476824,0.0233645,117750.0,117740.0,0.06571952]
[1752239477029,0.20170816,117750.0,117740.0,0.06571952]
[1752239477214,0.19321581,117750.0,117740.0,0.06571952]
[1752239477700,0.21020079,117750.0,117740.0,0.06572113]
[1752239477907,0.19321581,117750.0,117740.0,0.06572113]
[1752239478113,0.20170815,117750.0,117740.0,0.06572113]
[1752239478325,0.21020064,117750.0,117740.0,0.06572113]
[1752239478548,0.20170801,117750.0,117740.0,0.06572113]
[1752239478760,0.21020043,117750.0,117740.0,0.06572113]
[1752239479163,0.20170837,117750.0,117740.0,0.06572113]
[1752239479367,0.21020093,117750.0,117740.0,0.06572113]
[1752239479585,0.20382084,117750.0,117740.0,0.06572113]
[1752239479828,0.18683586,117750.0,117740.0,0.06572113]
[1752239480030,0.19532828,117750.0,117740.0,0.06572113]
[1752239480242,0.19532821,117750.0,117740.0,0.06572113]
[1752239480448,0.18683622,117750.0,117740.0,0.06572113]
[1752239480676,0.17834387,117750.0,117740.0,0.06572113]
[1752239480888,0.17834387,117750.0,117740.0,0.05072113]
[1752239481311,0.17834387,117750.0,117740.0,0.03552113]
[1752239481666,0.17834387,117750.0,117740.0,0.05102113]
[1752239481913,0.18683615,117750.0,117740.0,0.06632113]
[1752239482259,0.19532871,117750.0,117740.0,0.06632113]
[1752239482706,0.26698253,117760.0,117740.0,0.53765822]
[1752239482911,0.14349134,117760.0,117750.0,0.0314]
[1752239483186,0.14349134,117760.0,117750.0,0.04723871]
[1752239483320,0.15198275,117760.0,117750.0,0.04723871]
[1752239483521,0.3303114,117760.0,117750.0,0.04723871]
[1752239483741,0.33031197,117760.0,117750.0,0.04723871]
[1752239484112,0.19531197,117760.0,117750.0,0.04723871]
[1752239484315,0.33051197,117760.0,117750.0,0.04923871]
[1752239484952,0.57032358,117760.0,117750.0,0.04923871]
[1752239485571,0.57032358,117760.0,117750.0,0.05023871]
[1752239485791,0.57032358,117760.0,117750.0,0.01883871]
[1752239486171,1.07246067,117760.0,117750.0,0.01883871]
[1752239487116,0.57032358,117760.0,117750.0,0.01883871]
[1752239487589,0.57032358,117760.0,117750.0,0.01683871]
[1752239487794,0.57132358,117760.0,117750.0,0.01583871]
[1752239488020,0.57232358,117760.0,117750.0,0.01583871]
[1752239489350,1.07446067,117760.0,117750.0,0.01583871]
[1752239490032,0.43712358,117760.0,117750.0,0.01583871]
[1752239490246,0.57212358,117760.0,117750.0,0.03103871]
[1752239490714,0.42332629,117760.0,117750.0,0.03103871]
[1752239490919,0.55820629,117760.0,117750.0,0.04763871]
[1752239491137,0.55816629,117760.0,117750.0,0.04763871]
[1752239491518,0.55816629,117760.0,117750.0,0.04770039]
[1752239492610,0.43032843,117760.0,117750.0,0.04770039]
[1752239492822,0.27747416,117760.0,117750.0,0.04770039]
[1752239493044,0.39525134,117760.0,117750.0,0.04770039]
[1752239493733,0.58107147,117760.0,117750.0,0.04770039]
[1752239493973,0.57257977,117760.0,117750.0,0.04770039]
[1752239494149,0.58956302,117760.0,117750.0,0.04770039]
[1752239494433,0.58856302,117760.0,117750.0,0.04770039]
[1752239495067,0.31988359,117760.0,117750.0,0.04770039]
[1752239495503,0.19531204,117760.0,117750.0,0.04770039]
[1752239495721,0.32999204,117760.0,117750.0,0.04770039]
[1752239496149,0.32149984,117760.0,117750.0,0.04770039]
[1752239496357,0.15166289,117760.0,117750.0,0.04770039]
[1752239496589,0.32999147,117760.0,117750.0,0.04770039]
[1752239497026,0.33848317,117760.0,117750.0,0.04770039]
[1752239497244,0.34697501,117760.0,117750.0,0.04770039]
[1752239497463,0.32149984,117760.0,117750.0,0.04770039]
[1752239497687,0.15166282,117760.0,117750.0,0.04770039]
[1752239497906,0.16015445,117760.0,117750.0,0.04770039]
[1752239498336,0.15166282,117760.0,117750.0,0.04770039]
[1752239498549,0.3299914,117760.0,117750.0,0.04770039]
[1752239498969,0.33848317,117760.0,117750.0,0.04770039]
[1752239499151,0.3384831,117760.0,117750.0,0.04770039]
[1752239499409,0.33848353,117760.0,117750.0,0.04770039]
[1752239500068,0.32150006,117760.0,117750.0,0.04770039]
[1752239500492,0.32999183,117760.0,117750.0,0.04770039]
[1752239500705,0.13786594,117760.0,117750.0,0.04770039]
[1752239500916,0.31619452,117760.0,117750.0,0.04770039]
[1752239501331,0.13786594,117760.0,117750.0,0.04770039]
[1752239501547,0.324686,117760.0,117750.0,0.04770039]
[1752239501766,0.1877937,117790.0,117770.0,0.0157]
[1752239502003,0.1877937,117790.0,117770.0,0.04690039]
[1752239502004,0.3381287,117780.0,117770.0,0.04690039]
[1752239502676,0.83505116,117780.0,117770.0,0.04689807]
[1752239502896,0.32114869,117780.0,117770.0,0.04689807]
[1752239503542,0.83505116,117780.0,117770.0,0.03159807]
[1752239503750,0.32114869,117780.0,117770.0,0.03159807]
[1752239503964,0.83505116,117780.0,117770.0,0.03159807]
[1752239504420,0.00848982,117780.0,117770.0,0.04689807]
[1752239504604,0.96116464,117790.0,117780.0,0.0318]
[1752239504886,0.57329285,117790.0,117780.0,0.04769807]
[1752239505100,1.07700869,117790.0,117780.0,0.03159807]
[1752239505964,0.42858622,117790.0,117780.0,0.03159807]
[1752239506172,0.56310622,117790.0,117780.0,0.04669807]
[1752239506390,1.06851915,117790.0,117780.0,0.04669807]
[1752239506612,1.06851915,117790.0,117780.0,0.03159807]
[1752239506822,1.06951915,117790.0,117780.0,0.03159807]
[1752239508333,1.06951915,117790.0,117780.0,0.03157474]
[1752239509835,0.0209785,117790.0,117780.0,0.04777474]
[1752239510061,0.1556585,117790.0,117780.0,0.04777474]
[1752239510284,0.13868,117790.0,117780.0,0.04777474]
[1752239510519,0.004,117790.0,117780.0,0.56167721]
[1752239510729,0.13864,117790.0,117780.0,0.56167721]
[1752239510952,0.1471291,117790.0,117780.0,0.56167721]
[1752239511173,0.1471291,117790.0,117780.0,0.04777474]
[1752239511392,0.13864,117790.0,117780.0,0.04777474]
[1752239511612,0.14712918,117790.0,117780.0,0.04777474]
[1752239511879,0.0209785,117790.0,117780.0,0.04777474]
[1752239512093,0.00848918,117790.0,117780.0,0.04983474]
[1752239512307,0.0169785,117790.0,117780.0,0.04983474]
[1752239512755,0.0169785,117790.0,117780.0,0.05301474]
[1752239513398,0.00848918,117790.0,117780.0,0.05301474]
[1752239513817,0.0084891,117790.0,117780.0,0.05241474]
[1752239514041,1.09382975,117800.0,117790.0,0.0313]
[1752239514257,0.57992728,117800.0,117790.0,0.04717474]
[1752239514469,0.57992728,117800.0,117790.0,0.05241474]
[1752239515104,0.32143875,117800.0,117790.0,0.05241474]
[1752239515534,0.32343875,117800.0,117790.0,0.05241474]
[1752239516836,0.83834122,117800.0,117790.0,0.05241474]
[1752239518073,0.01148831,117800.0,117790.0,0.05241474]
[1752239518329,0.003,117800.0,117790.0,0.56629885]
[1752239518550,0.31590766,117800.0,117790.0,0.05239638]
[1752239518761,0.83829931,117800.0,117790.0,0.05239638]
[1752239518974,0.83829931,117800.0,117790.0,0.01903638]
[1752239518975,0.32439684,117800.0,117790.0,0.01903638]
[1752239519191,0.83829931,117800.0,117790.0,0.01903638]
[1752239519668,0.92372924,117800.0,117790.0,0.01585638]
[1752239519914,1.46773171,117800.0,117790.0,0.01585638]
[1752239520127,0.95374924,117800.0,117790.0,0.01585638]
[1752239520340,0.95074924,117800.0,117790.0,0.01585638]
[1752239520774,0.95174924,117800.0,117790.0,0.01785638]
[1752239520990,0.95174924,117800.0,117790.0,0.01585638]
[1752239521441,0.32331684,117800.0,117790.0,0.01903638]
[1752239521652,0.82873064,117800.0,117790.0,0.01903638]
[1752239522295,1.22873064,117800.0,117790.0,0.01903638]
[1752239522515,1.22873064,117800.0,117790.0,0.01585638]
[1752239524576,1.85926304,117800.0,117790.0,0.01585638]
[1752239525011,1.84907643,117800.0,117790.0,0.01585638]
[1752239525939,6.78058754,117800.0,117760.0,0.0329]
[1752239526154,1.24710921,117770.0,117760.0,0.00214992]
[1752239526386,0.80844841,117770.0,117760.0,0.00214992]
[1752239526596,1.35217939,117770.0,117760.0,0.00214992]
[1752239526806,0.95217939,117770.0,117760.0,0.00214992]
[1752239527022,0.95213939,117770.0,117760.0,0.00738992]
[1752239527252,1.05573692,117770.0,117760.0,0.00938992]
[1752239527471,1.56963939,117770.0,117760.0,0.01138992]
[1752239527704,1.56963939,117770.0,117760.0,0.00214992]
[1752239528136,1.57163939,117770.0,117760.0,0.00214992]
[1752239528600,1.57163939,117770.0,117760.0,0.00738992]
[1752239529023,1.57163939,117770.0,117760.0,0.00214992]
[1752239529667,1.58017068,117770.0,117760.0,0.00214992]
[1752239532116,1.58017068,117770.0,117760.0,0.00738992]
[1752239533019,1.58017068,117770.0,117760.0,0.00214992]
[1752239534342,1.09786821,117770.0,117760.0,0.00738992]
[1752239534569,1.61177068,117770.0,117760.0,0.00214992]
[1752239536831,2.12567315,117770.0,117760.0,0.00214992]
[1752239537256,1.61177068,117770.0,117760.0,0.00532992]
[1752239537484,1.61177068,117770.0,117760.0,0.00214992]
[1752239538392,1.61177068,117770.0,117760.0,0.00532992]
[1752239538627,1.61177068,117770.0,117760.0,0.00214992]
[1752239539216,1.61172822,117770.0,117760.0,0.00214992]
[1752239540814,1.33012822,117770.0,117760.0,0.00214992]
[1752239541016,1.43639693,117770.0,117760.0,0.00214992]
[1752239541225,1.57095693,117770.0,117760.0,0.00532992]
[1752239541434,1.57095693,117770.0,117760.0,0.00214992]
[1752239541895,1.60245693,117770.0,117760.0,0.00214992]
[1752239542201,1.58615693,117770.0,117760.0,0.00214992]
[1752239542429,1.59469986,117770.0,117760.0,0.00214992]
[1752239542637,1.57949986,117770.0,117760.0,0.00214992]
[1752239542875,1.57949986,117770.0,117760.0,0.02108905]
[1752239543722,1.57095693,117770.0,117760.0,0.02317905]
[1752239543938,1.57095693,117770.0,117760.0,0.05447905]
[1752239544278,1.57095693,117770.0,117760.0,0.03827905]
[1752239545158,1.05693446,117770.0,117760.0,0.03827905]
[1752239545365,1.57083693,117770.0,117760.0,0.03827905]
[1752239545740,1.57939858,117770.0,117760.0,0.03827905]
[1752239546297,1.06549611,117770.0,117760.0,0.03827905]
[1752239546520,1.57939858,117770.0,117760.0,0.01798905]
[1752239546735,1.57939858,117770.0,117750.0,0.00793402]
[1752239546736,0.17572865,117760.0,117750.0,0.00793402]
[1752239546971,0.82399112,117760.0,117750.0,0.01103402]
[1752239547180,0.90942105,117760.0,117750.0,0.0031]
[1752239547387,0.1783438,117750.0,117740.0,0.02278242]
[1752239547597,0.81641666,117750.0,117740.0,0.02487242]
[1752239547803,0.82490908,117750.0,117740.0,0.02487242]
[1752239548218,0.83340143,117750.0,117740.0,0.02487242]
[1752239549053,0.82490908,117750.0,117740.0,0.02487242]
[1752239549265,0.82490908,117750.0,117740.0,0.02587242]
[1752239549698,0.82490908,117750.0,117740.0,0.04217242]
[1752239549811,0.82490908,117750.0,117740.0,0.05757242]
[1752239550049,0.51390247,117750.0,117740.0,0.05757242]
[1752239550292,0.3296849,117760.0,117740.0,0.57147489]
[1752239550514,0.3296849,117760.0,117750.0,0.0348]
[1752239550757,0.3296849,117760.0,117750.0,0.03689]
[1752239550956,0.32119342,117760.0,117750.0,0.03689]
[1752239551158,0.83408322,117760.0,117750.0,0.03689]
[1752239552052,0.69972322,117760.0,117750.0,0.03689]
[1752239552274,0.83408322,117760.0,117750.0,0.03689]
[1752239553137,0.83408322,117760.0,117750.0,0.03789]
[1752239553571,0.13436,117760.0,117750.0,0.03639]
[1752239553802,0.18688902,117770.0,117750.0,0.52009247]
[1752239554017,0.33823112,117770.0,117760.0,0.0333]
[1752239554259,0.33823105,117770.0,117760.0,0.03539]
[1752239554473,0.58823105,117770.0,117760.0,0.03539]
[1752239554697,0.58823155,117770.0,117760.0,0.03539]
[1752239555806,0.58923155,117770.0,117760.0,0.03539]
[1752239556250,1.08615221,117770.0,117760.0,0.03539]
[1752239556470,0.19532777,117750.0,117740.0,0.06016542]
[1752239556718,0.00849191,117750.0,117740.0,0.06225542]
[1752239556963,0.00849191,117750.0,117740.0,0.08145542]
[1752239557188,0.01698434,117750.0,117740.0,0.08145542]
[1752239557412,0.02547625,117750.0,117740.0,0.08145542]
[1752239557630,0.01383039,117750.0,117740.0,0.08145542]
[1752239557838,0.02232245,117750.0,117740.0,0.08145542]
[1752239558058,0.03081473,117750.0,117740.0,0.08145542]
[1752239558268,0.02232245,117750.0,117740.0,0.08145542]
[1752239558475,0.01383032,117750.0,117740.0,0.08145542]
[1752239560241,0.3381766,117760.0,117750.0,0.05319292]
[1752239560474,0.32968512,117760.0,117750.0,0.05319292]
[1752239562419,0.84358759,117760.0,117750.0,0.03540292]
[1752239562628,0.84358759,117760.0,117750.0,0.03749292]
[1752239563228,0.83509589,117760.0,117750.0,0.03749292]
[1752239563860,0.83509589,117760.0,117750.0,0.02000292]
[1752239564637,0.83509589,117760.0,117750.0,0.02209292]
[1752239564783,0.83509589,117760.0,117750.0,0.03859292]
[1752239564992,0.31268829,117760.0,117750.0,0.03859292]
[1752239565192,0.32967133,117760.0,117750.0,0.05379292]
[1752239565403,0.19538022,117770.0,117760.0,0.0307]
[1752239565607,0.32974022,117770.0,117760.0,0.04869292]
[1752239565802,0.32974022,117770.0,117760.0,0.05179292]
[1752239566605,0.31594432,117770.0,117760.0,0.05179292]
[1752239567850,0.82984679,117770.0,117760.0,0.05179292]
[1752239568254,0.83084679,117770.0,117760.0,0.03659292]
[1752239568528,0.8223561,117770.0,117760.0,0.03658166]
[1752239569787,0.81386519,117770.0,117760.0,0.03658166]
[1752239570009,0.81386519,117770.0,117760.0,0.03449166]
[1752239570204,0.81386519,117770.0,117760.0,0.01999166]
[1752239571072,0.81386519,117770.0,117760.0,0.02208166]
[1752239571259,0.81386519,117770.0,117760.0,0.02208222]
[1752239572826,0.81386519,117770.0,117760.0,0.03768222]
[1752239573031,0.81386519,117770.0,117760.0,0.03668222]
[1752239573422,0.81286519,117770.0,117760.0,0.03668222]
[1752239573864,0.81286519,117770.0,117760.0,0.02108222]
[1752239574077,0.81286519,117770.0,117760.0,0.01589222]
[1752239574243,0.82916519,117770.0,117760.0,0.01589222]
[1752239574470,0.81286519,117770.0,117760.0,0.01903222]
[1752239574686,0.81286519,117770.0,117760.0,0.03644222]
[1752239575295,0.81286519,117770.0,117760.0,0.03744222]
[1752239575499,0.81286519,117770.0,117760.0,0.03644222]
[1752239575679,0.81386519,117770.0,117760.0,0.03644222]
[1752239576739,0.80006884,117770.0,117760.0,0.03644222]
[1752239576945,0.80006884,117770.0,117760.0,0.02055]
[1752239577147,0.80006884,117770.0,117760.0,0.03644281]
[1752239577774,0.28616637,117770.0,117760.0,0.03644281]
[1752239578191,0.80006884,117770.0,117760.0,0.03644281]
[1752239578402,0.00108504,117770.0,117760.0,0.56584528]
[1752239578616,0.00108504,117770.0,117760.0,0.66581464]
[1752239579034,0.00014643,117770.0,117760.0,0.69129164]
[1752239579474,0.14805241,117780.0,117770.0,0.0328]
[1752239579690,0.14805241,117780.0,117770.0,0.05080139]
[1752239579902,0.14805241,117780.0,117770.0,0.05393639]
[1752239580539,0.15129987,117780.0,117770.0,0.05393639]
[1752239580746,0.15129994,117780.0,117770.0,0.05393639]
[1752239581162,0.33808849,117780.0,117770.0,0.05393639]
[1752239581392,0.84350106,117780.0,117770.0,0.05493639]
[1752239581821,0.83501102,117780.0,117770.0,0.05493639]
[1752239582246,0.32110855,117780.0,117770.0,0.05493639]
[1752239582466,1.07652091,117780.0,117770.0,0.03843639]
[1752239582687,1.09172091,117780.0,117770.0,0.01688639]
[1752239582901,2.26696324,117780.0,117770.0,0.01688639]